bitfinex/quotes_BTCUSD_20251009
["timestamp","ask_amount","ask_price","bid_price","bid_amount"]
[1759972812148,0.17116021,122700.0,122690.0,0.06733124]
[1759972812350,0.17116021,122700.0,122690.0,0.23034371]
[1759972812550,0.17116021,122700.0,122690.0,0.21404247]
[1759972812751,0.17116021,122700.0,122690.0,0.44568247]
[1759972813191,0.17116021,122700.0,122690.0,0.44582926]
[1759972813973,0.17116021,122700.0,122690.0,0.28281679]
[1759972814467,0.17316021,122700.0,122690.0,0.28381679]
[1759972814674,0.18316021,122700.0,122690.0,0.44782926]
[1759972816367,0.18316021,122700.0,122690.0,0.45590175]
[1759972819195,0.012,122700.0,122690.0,0.45590175]
[1759972819403,0.17499918,122700.0,122690.0,0.28469679]
[1759972819790,0.17499918,122700.0,122690.0,0.44770926]
[1759972820291,0.17499918,122700.0,122690.0,0.45575397]
[1759972822583,0.17499918,122700.0,122690.0,0.2927415]
[1759972822781,0.17499918,122700.0,122690.0,0.28465679]
[1759972823980,0.17499918,122700.0,122690.0,0.29296211]
[1759972824643,0.17499918,122700.0,122690.0,0.45800013]
[1759972824882,0.012,122700.0,122690.0,0.22652013]
[1759972825090,0.012,122700.0,122690.0,0.27515046]
[1759972825329,0.012,122700.0,122690.0,0.30964219]
[1759972825523,0.012,122700.0,122690.0,0.54108219]
[1759972826926,0.002,122700.0,122690.0,0.54008219]
[1759972827164,0.17115941,122720.0,122700.0,0.16298676]
[1759972827382,0.17115941,122720.0,122710.0,0.46035449]
[1759972827585,0.17115941,122720.0,122710.0,0.4440559]
[1759972828426,0.001,122720.0,122710.0,0.2974159]
[1759972828660,0.001,122720.0,122710.0,0.5288159]
[1759972829072,0.012,122720.0,122710.0,0.5288159]
[1759972830210,0.001,122720.0,122710.0,0.5288159]
[1759972830434,0.1711666,122730.0,122710.0,0.5318159]
[1759972830648,0.014,122720.0,122710.0,0.5089259]
[1759972830858,0.016,122720.0,122710.0,0.5099259]
[1759972831271,0.002,122720.0,122710.0,0.5298159]
[1759972831494,0.1711666,122730.0,122710.0,0.5288159]
[1759972831673,0.1861666,122730.0,122720.0,0.16297262]
[1759972831913,0.1731666,122730.0,122720.0,0.19714262]
[1759972832125,0.1731666,122730.0,122720.0,0.21260262]
[1759972832342,0.46584069,122730.0,122720.0,0.04963]
[1759972832532,0.46584069,122730.0,122720.0,0.28099]
[1759972833187,0.46584069,122730.0,122720.0,0.28095]
[1759972833396,0.47342319,122730.0,122720.0,0.28095]
[1759972833856,0.49042319,122730.0,122720.0,0.28395]
[1759972834072,0.49042319,122730.0,122720.0,0.05263]
[1759972834277,0.49042319,122730.0,122720.0,0.28395]
[1759972834482,0.49342319,122730.0,122720.0,0.28495]
[1759972835782,0.0275825,122730.0,122720.0,0.44792262]
[1759972836015,0.0025825,122730.0,122720.0,0.21660262]
[1759972836453,0.0025825,122730.0,122720.0,0.44788262]
[1759972836723,0.0025825,122730.0,122720.0,0.52964262]
[1759972836951,0.16294692,122740.0,122720.0,0.21260262]
[1759972837184,0.012,122730.0,122720.0,0.51075262]
[1759972837413,0.001,122730.0,122720.0,0.54643941]
[1759972837623,0.16294692,122740.0,122720.0,0.54443941]
[1759972837836,0.16294692,122740.0,122730.0,0.037]
[1759972838045,0.16294692,122740.0,122730.0,0.21655934]
[1759972838258,0.16294692,122740.0,122730.0,0.28102945]
[1759972838464,0.16294692,122740.0,122730.0,0.11807011]
[1759972838682,0.51252074,122750.0,122740.0,0.16294606]
[1759972838893,0.52767945,122750.0,122740.0,0.04118]
[1759972839114,0.51252074,122750.0,122740.0,0.07004139]
[1759972839789,0.00135467,122750.0,122740.0,0.07004139]
[1759972840016,0.00135467,122750.0,122740.0,0.46422745]
[1759972840225,0.00135467,122750.0,122740.0,0.52792965]
[1759972840659,0.00635467,122750.0,122740.0,0.52992965]
[1759972841075,0.00335467,122750.0,122740.0,0.52892965]
[1759972841519,0.00235467,122750.0,122740.0,0.52892965]
[1759972841957,0.16528746,122750.0,122740.0,0.52892965]
[1759972842192,0.16528746,122750.0,122740.0,0.29768965]
[1759972842404,0.16528746,122750.0,122740.0,0.61368965]
[1759972842822,0.16628746,122750.0,122740.0,0.61468965]
[1759972844824,0.16628746,122750.0,122740.0,0.29868965]
[1759972845018,0.16628746,122750.0,122740.0,0.61460965]
[1759972845828,0.16628746,122750.0,122740.0,0.83548283]
[1759972846470,0.16628746,122750.0,122740.0,0.75072283]
[1759972846658,0.16628746,122750.0,122740.0,0.83548283]
[1759972847973,0.17385519,122750.0,122740.0,0.83548283]
[1759972848589,0.0109224,122750.0,122740.0,0.83548283]
[1759972849449,0.0109224,122750.0,122740.0,1.05635601]
[1759972849865,0.0109224,122750.0,122740.0,0.83548283]
[1759972850090,0.0109224,122750.0,122740.0,0.60432283]
[1759972850317,0.01092404,122750.0,122740.0,0.83544283]
[1759972850535,0.00335467,122750.0,122740.0,0.83544283]
[1759972851955,0.00335467,122750.0,122740.0,1.05631601]
[1759972852290,0.00335467,122750.0,122740.0,0.83544283]
[1759972852671,0.00335467,122750.0,122740.0,1.05631601]
[1759972852807,0.00335467,122750.0,122740.0,0.83544283]
[1759972853227,0.00238583,122750.0,122740.0,0.51956283]
[1759972853437,0.16531862,122750.0,122740.0,0.29868965]
[1759972853652,0.00238583,122750.0,122740.0,1.05944127]
[1759972853861,0.00238583,122750.0,122740.0,0.61769491]
[1759972854126,0.00238583,122750.0,122740.0,1.05944127]
[1759972854337,0.00238583,122750.0,122740.0,0.61769491]
[1759972854560,0.00238583,122750.0,122740.0,0.88347316]
[1759972854771,0.00238583,122750.0,122740.0,0.84855806]
[1759972854978,0.00238583,122750.0,122740.0,0.69769171]
[1759972855186,0.00238583,122750.0,122740.0,1.13943807]
[1759972855409,0.00138583,122750.0,122740.0,1.13843807]
[1759972855630,0.00038583,122750.0,122740.0,1.14143807]
[1759972855840,0.00138583,122750.0,122740.0,0.92056489]
[1759972856044,0.00238583,122750.0,122740.0,0.92556489]
[1759972856688,0.00238583,122750.0,122740.0,0.60968489]
[1759972856898,0.00238583,122750.0,122740.0,0.92552489]
[1759972857519,0.00238583,122750.0,122740.0,0.98647142]
[1759972857930,0.00238583,122750.0,122740.0,0.76559824]
[1759972858141,0.00238583,122750.0,122740.0,0.90171142]
[1759972858349,0.00238583,122750.0,122740.0,0.98647142]
[1759972860505,0.00238583,122750.0,122740.0,0.9762646]
[1759972860657,0.00238583,122750.0,122740.0,1.2073446]
[1759972861272,0.00238583,122750.0,122740.0,0.53451824]
[1759972861475,0.00238583,122750.0,122740.0,1.2073446]
[1759972861840,0.00238583,122750.0,122740.0,0.44975824]
[1759972862045,0.16531862,122750.0,122740.0,0.68560144]
[1759972862251,0.3861918,122750.0,122740.0,0.54153285]
[1759972862677,0.22325901,122750.0,122740.0,0.54153285]
[1759972862882,0.3937745,122750.0,122740.0,0.14750679]
[1759972863091,0.3937745,122750.0,122740.0,0.37858679]
[1759972863305,0.3937745,122750.0,122740.0,0.06274679]
[1759972863511,0.3937745,122750.0,122740.0,0.29382679]
[1759972863715,0.7337745,122750.0,122740.0,0.27746679]
[1759972863921,0.7327745,122750.0,122740.0,0.05774679]
[1759972864129,0.7327745,122750.0,122740.0,0.03316679]
[1759972864130,1.03676974,122750.0,122740.0,0.03316679]
[1759972864337,1.05193995,122750.0,122740.0,0.24540679]
[1759972864546,1.05093995,122750.0,122740.0,0.24140679]
[1759972864757,0.83006677,122750.0,122740.0,0.26778679]
[1759972864968,0.83106677,122750.0,122740.0,0.26778679]
[1759972865183,0.83206677,122750.0,122740.0,0.26878679]
[1759972865364,0.83106677,122750.0,122740.0,0.26678679]
[1759972865732,0.83406677,122750.0,122740.0,0.26778679]
[1759972866145,0.81889656,122750.0,122740.0,0.26778679]
[1759972867144,1.03976974,122750.0,122740.0,0.05554679]
[1759972867363,1.05494267,122750.0,122740.0,0.03116679]
[1759972867632,1.05494267,122750.0,122740.0,0.00214679]
[1759972867633,1.27581585,122750.0,122740.0,0.00214679]
[1759972867864,1.07680237,122750.0,122740.0,0.00214679]
[1759972868338,1.07580237,122750.0,122740.0,0.00114679]
[1759972868578,1.52475555,122750.0,122740.0,0.00014679]
[1759972868808,1.53475555,122750.0,122740.0,0.00114679]
[1759972869042,1.55475555,122750.0,122740.0,0.00314679]
[1759972869298,1.32367555,122750.0,122740.0,0.00314679]
[1759972869529,1.55483555,122750.0,122740.0,0.00314679]
[1759972871295,1.58498745,122750.0,122740.0,0.00314679]
[1759972871498,1.35382745,122750.0,122740.0,0.00314679]
[1759972871708,1.58498745,122750.0,122740.0,0.00314679]
[1759972872968,1.56312775,122750.0,122740.0,0.00314679]
[1759972873388,1.58760315,122750.0,122740.0,0.00314679]
[1759972874665,0.16295934,122730.0,122720.0,0.01285626]
[1759972874903,1.30156545,122730.0,122720.0,0.00065294]
[1759972875123,1.53272545,122730.0,122720.0,0.00065294]
[1759972875340,1.55458515,122730.0,122720.0,0.00065294]
[1759972875552,1.5790649,122730.0,122720.0,0.00065294]
[1759972876181,1.5820649,122730.0,122720.0,0.00165294]
[1759972876396,0.34,122700.0,122690.0,0.07854503]
[1759972876608,1.0278676,122700.0,122690.0,0.09506379]
[1759972877244,1.03584977,122700.0,122690.0,0.09506379]
[1759972877462,1.03584977,122700.0,122690.0,0.02886876]
[1759972877850,1.03684977,122700.0,122690.0,0.02886876]
[1759972878718,1.03884977,122700.0,122690.0,0.03286876]
[1759972879422,1.0308676,122700.0,122690.0,0.03286876]
[1759972879640,1.0308676,122700.0,122690.0,0.05646876]
[1759972880282,0.58912124,122700.0,122690.0,0.05646876]
[1759972880464,1.0308676,122700.0,122690.0,0.05646876]
[1759972881640,0.58912124,122700.0,122690.0,0.05646876]
[1759972881983,0.72687236,122700.0,122690.0,0.30645831]
[1759972882201,0.72687236,122700.0,122690.0,0.29015707]
[1759972884772,0.72687236,122700.0,122690.0,0.05895707]
[1759972884955,0.50599918,122700.0,122690.0,0.30645831]
[1759972885188,0.72687236,122700.0,122690.0,0.29015707]
[1759972885399,0.50599918,122700.0,122690.0,0.29015707]
[1759972885610,0.003,122700.0,122690.0,0.44284272]
[1759972885853,0.003,122700.0,122690.0,0.67404272]
[1759972886665,0.003,122700.0,122690.0,0.75720478]
[1759972887777,0.16298776,122710.0,122700.0,0.16299918]
[1759972887977,0.16298776,122710.0,122700.0,0.29291909]
[1759972888136,0.16298776,122710.0,122700.0,0.30021918]
[1759972888730,0.16298776,122710.0,122700.0,0.05242]
[1759972888937,0.38386094,122710.0,122700.0,0.36842]
[1759972889135,0.38686094,122710.0,122700.0,0.38242]
[1759972889527,0.38786094,122710.0,122700.0,0.38242]
[1759972889728,0.38785908,122710.0,122700.0,0.54541918]
[1759972890132,0.1669859,122710.0,122700.0,0.54541918]
[1759972890532,0.004,122710.0,122700.0,0.31421918]
[1759972890822,0.004,122710.0,122700.0,0.54541918]
[1759972891651,0.1669859,122710.0,122700.0,0.54541918]
[1759972892493,0.004,122710.0,122700.0,0.8390876]
[1759972892913,0.004,122710.0,122700.0,1.0702876]
[1759972893317,0.004,122710.0,122700.0,1.07226938]
[1759972895461,0.004,122710.0,122700.0,0.84106938]
[1759972895657,0.004,122710.0,122700.0,1.07222938]
[1759972896007,0.004,122710.0,122700.0,1.21348593]
[1759972896710,0.003,122710.0,122700.0,1.21348593]
[1759972897007,0.004,122710.0,122700.0,1.21348593]
[1759972897253,0.004,122710.0,122700.0,0.45577957]
[1759972897464,0.1639859,122710.0,122700.0,0.30052302]
[1759972897681,0.1639859,122710.0,122700.0,0.61644302]
[1759972897885,0.1659859,122710.0,122700.0,0.53876302]
[1759972898086,0.1639859,122710.0,122700.0,0.61652302]
[1759972898399,0.1649859,122710.0,122700.0,0.62352302]
[1759972898632,0.1639859,122710.0,122700.0,0.53376302]
[1759972898833,0.38485908,122710.0,122700.0,0.05640178]
[1759972899028,0.38685908,122710.0,122700.0,0.14616178]
[1759972899254,0.38585908,122710.0,122700.0,0.35720178]
[1759972899456,0.38685908,122710.0,122700.0,0.36020178]
[1759972899691,0.1659859,122710.0,122700.0,0.54136096]
[1759972900096,0.1649859,122710.0,122700.0,0.53836096]
[1759972900411,0.1649859,122710.0,122700.0,0.53336096]
[1759972900619,0.1629859,122710.0,122700.0,0.53336096]
[1759972900762,0.1709859,122710.0,122700.0,0.53436096]
[1759972900964,0.1729859,122710.0,122700.0,0.53536096]
[1759972903925,0.01,122710.0,122700.0,0.60503094]
[1759972904103,0.01,122710.0,122700.0,1.05710412]
[1759972904305,0.01,122710.0,122700.0,0.83623094]
[1759972905019,0.01,122710.0,122700.0,1.05710412]
[1759972905192,0.51868648,122730.0,122720.0,0.16297262]
[1759972905369,0.73955966,122730.0,122720.0,0.44480262]
[1759972905968,0.51868648,122730.0,122720.0,0.28183]
[1759972906377,0.51968648,122730.0,122720.0,0.28283]
[1759972906764,0.51968648,122730.0,122720.0,0.44580262]
[1759972906765,0.17153795,122730.0,122720.0,0.44580262]
[1759972906965,0.17153795,122730.0,122720.0,0.44680262]
[1759972906966,0.17195934,122730.0,122720.0,0.44680262]
[1759972910539,0.17195934,122730.0,122720.0,0.44777156]
[1759972911597,0.009,122730.0,122720.0,0.21657156]
[1759972911825,0.17195934,122730.0,122720.0,0.21657156]
[1759972912036,0.17195934,122730.0,122720.0,0.53249156]
[1759972918218,0.17195934,122730.0,122720.0,0.21657156]
[1759972918415,0.17195934,122730.0,122720.0,0.36951894]
[1759972921822,0.17195934,122730.0,122720.0,0.05359894]
[1759972922158,0.17195934,122730.0,122720.0,0.36951894]
[1759972922780,0.17195934,122730.0,122720.0,0.30133156]
[1759972922997,0.17195934,122730.0,122720.0,0.53249156]
[1759972930737,0.17195934,122730.0,122720.0,0.05359894]
[1759972930966,0.17195934,122730.0,122720.0,0.36951894]
[1759972931626,0.46661143,122730.0,122720.0,0.28471894]
[1759972931764,0.46661143,122730.0,122720.0,0.05359894]
[1759972931959,0.48844397,122730.0,122720.0,0.16061894]
[1759972932162,0.91156603,122730.0,122720.0,0.26133894]
[1759972932362,0.93604232,122730.0,122720.0,0.00296894]
[1759972932624,0.91420978,122730.0,122720.0,0.00296894]
[1759972932848,0.93604232,122730.0,122720.0,0.00296894]
[1759972933509,0.91420978,122730.0,122720.0,0.00296894]
[1759972933742,0.93604232,122730.0,122720.0,0.00296894]
[1759972934567,1.24587678,122730.0,122720.0,0.00296894]
[1759972934784,0.95122469,122730.0,122720.0,0.00296894]
[1759972935015,1.14536978,122730.0,122720.0,0.05373894]
[1759972936702,1.17552168,122730.0,122720.0,0.05373894]
[1759972938485,0.61955769,122730.0,122720.0,0.06026383]
[1759972938686,0.17195934,122730.0,122720.0,0.05373894]
[1759972938903,0.51195934,122730.0,122720.0,0.28489894]
[1759972939742,0.51195934,122730.0,122720.0,0.44787156]
[1759972939887,0.17195934,122730.0,122720.0,0.44787156]
[1759972940314,0.17195934,122730.0,122720.0,0.53263156]
[1759972943302,0.17195934,122730.0,122720.0,0.05373894]
[1759972943527,0.46661143,122730.0,122720.0,0.05373894]
[1759972943797,0.46661143,122730.0,122720.0,0.28489894]
[1759972945225,0.46661143,122730.0,122720.0,0.05373894]
[1759972945750,0.46661143,122730.0,122720.0,0.28489894]
[1759972945999,0.46661143,122730.0,122720.0,0.05373894]
[1759972946179,0.82844397,122730.0,122720.0,0.03063894]
[1759972946485,0.91156603,122730.0,122720.0,0.03063894]
[1759972946720,0.88973349,122730.0,122720.0,0.05373894]
[1759972948218,0.88973349,122730.0,122720.0,0.00296894]
[1759972948637,0.9142104,122730.0,122720.0,0.00296894]
[1759972948870,0.9142104,122730.0,122720.0,0.01912894]
[1759972949132,0.9142104,122730.0,122720.0,0.05373894]
[1759972949599,0.9142104,122730.0,122720.0,0.03063894]
[1759972953244,0.9142104,122730.0,122720.0,0.00296894]
[1759972953623,1.1453704,122730.0,122720.0,0.00296894]
[1759972955135,1.16720294,122730.0,122720.0,0.00296894]
[1759972957388,1.19735484,122730.0,122720.0,0.00296894]
[1759972957906,0.64971021,122730.0,122720.0,0.01844894]
[1759972958140,0.9443623,122730.0,122720.0,0.01844894]
[1759972958356,1.1755223,122730.0,122720.0,0.00296894]
[1759972960745,1.1755223,122730.0,122720.0,0.01844894]
[1759972960963,0.9443623,122730.0,122720.0,0.01844894]
[1759972961175,1.1755223,122730.0,122720.0,0.03016894]
[1759972962068,0.9443623,122730.0,122720.0,0.05501894]
[1759972962281,1.1755223,122730.0,122720.0,0.05501894]
[1759972962503,0.61955831,122730.0,122720.0,0.05501894]
[1759972962727,0.51195934,122730.0,122720.0,0.05501894]
[1759972963786,0.009,122730.0,122720.0,0.0713162]
[1759972964029,0.17195934,122730.0,122720.0,0.23428882]
[1759972964237,0.51195934,122730.0,122720.0,0.53391156]
[1759972964666,0.51195934,122730.0,122720.0,0.37093894]
[1759972964887,0.51195934,122730.0,122720.0,0.53391156]
[1759972966064,0.17195934,122730.0,122720.0,0.30275156]
[1759972966285,0.009,122730.0,122720.0,0.53391156]
[1759972966487,0.17195934,122730.0,122720.0,0.53391156]
[1759972966692,0.009,122730.0,122720.0,0.53391156]
[1759972967307,0.009,122730.0,122720.0,0.549005]
[1759972967711,0.17195934,122730.0,122720.0,0.53391156]
[1759972967907,0.009,122730.0,122720.0,0.53391156]
[1759972968134,0.009,122730.0,122720.0,0.7548671]
[1759972968335,0.009,122730.0,122720.0,0.7629801]
[1759972971751,0.17195934,122730.0,122720.0,0.22610456]
[1759972971962,0.39291488,122730.0,122720.0,0.37089894]
[1759972972167,0.39291488,122730.0,122720.0,0.05501894]
[1759972972382,0.95387042,122730.0,122720.0,0.17980894]
[1759972972589,0.73291488,122730.0,122720.0,0.03016894]
[1759972972994,0.73291488,122730.0,122720.0,0.24192894]
[1759972973172,0.73291488,122730.0,122720.0,0.26665894]
[1759972973594,0.75474742,122730.0,122720.0,0.05489894]
[1759972973801,0.75474742,122730.0,122720.0,0.28609894]
[1759972974187,0.75474742,122730.0,122720.0,0.05489894]
[1759972974378,0.75474742,122730.0,122720.0,0.28609894]
[1759972975138,0.73291488,122730.0,122720.0,0.05489894]
[1759972975347,0.73291488,122730.0,122720.0,0.28609894]
[1759972975763,0.73291488,122730.0,122720.0,0.05489894]
[1759972976175,0.73291488,122730.0,122720.0,0.12705894]
[1759972982182,0.009,122730.0,122720.0,0.25650295]
[1759972982385,0.009,122730.0,122720.0,0.44903156]
[1759972982956,0.009,122730.0,122720.0,0.4388271]
[1759972983141,0.009,122730.0,122720.0,0.6699871]
[1759972983796,0.008,122730.0,122720.0,0.6689871]
[1759972983997,0.16333267,122740.0,122730.0,0.16295934]
[1759972984201,0.16333267,122740.0,122730.0,0.19162527]
[1759972984414,0.16333267,122740.0,122730.0,0.28404]
[1759972984624,0.60524375,122740.0,122730.0,0.05288]
[1759972984857,0.94524375,122740.0,122730.0,0.25927]
[1759972985070,0.94524375,122740.0,122730.0,0.23195]
[1759972985316,0.94524375,122740.0,122730.0,0.23199876]
[1759972985883,1.03036581,122740.0,122730.0,0.02919876]
[1759972986302,1.25132135,122740.0,122730.0,0.02919876]
[1759972986502,1.50439389,122740.0,122730.0,0.00104876]
[1759972986704,1.50539389,122740.0,122730.0,0.00304876]
[1759972987129,1.27415389,122740.0,122730.0,0.00304876]
[1759972987336,1.27315389,122740.0,122730.0,0.00104876]
[1759972987509,1.51963071,122740.0,122730.0,0.00104876]
[1759972987720,1.51963071,122740.0,122730.0,0.00204876]
[1759972987721,1.53414071,122740.0,122730.0,0.00204876]
[1759972988524,1.53214071,122740.0,122730.0,0.00104876]
[1759972989109,1.53814071,122740.0,122730.0,0.00304876]
[1759972990188,1.56829261,122740.0,122730.0,0.00304876]
[1759972990407,1.33697261,122740.0,122730.0,0.00304876]
[1759972990698,1.55309579,122740.0,122730.0,0.00304876]
[1759972991313,1.56824879,122740.0,122730.0,0.00304876]
[1759972991714,1.54641625,122740.0,122730.0,0.00304876]
[1759972994088,1.31513625,122740.0,122730.0,0.00304876]
[1759972994298,1.53122325,122740.0,122730.0,0.03059876]
[1759972994506,1.53122325,122740.0,122730.0,0.00304876]
[1759972994717,1.53122325,122740.0,122730.0,0.01885876]
[1759972995009,1.53122325,122740.0,122730.0,0.00304876]
[1759972997942,1.07902771,122740.0,122730.0,0.03059876]
[1759972998183,0.28560663,122740.0,122730.0,0.05428876]
[1759972998413,1.29867771,122740.0,122730.0,0.05428876]
[1759973000265,0.85676663,122740.0,122730.0,0.05428876]
[1759973000479,1.29867771,122740.0,122730.0,0.05428876]
[1759973001194,0.85676663,122740.0,122730.0,0.05428876]
[1759973001405,1.03736581,122740.0,122730.0,0.05428876]
[1759973001586,1.26852581,122740.0,122730.0,0.05428876]
[1759973006129,1.26852581,122740.0,122730.0,0.03059876]
[1759973008096,1.26852581,122740.0,122730.0,0.05428876]
[1759973008864,1.03736581,122740.0,122730.0,0.05428876]
[1759973009066,0.73328821,122740.0,122730.0,0.05428876]
[1759973009312,0.17233267,122740.0,122730.0,0.05428876]
[1759973009489,0.73328821,122740.0,122730.0,0.05428876]
[1759973010125,0.73328821,122740.0,122730.0,0.07058469]
[1759973010723,0.73328821,122740.0,122730.0,0.05428876]
[1759973011186,0.73328821,122740.0,122730.0,0.07058469]
[1759973011588,0.73328821,122740.0,122730.0,0.05428876]
[1759973012210,0.73328821,122740.0,122730.0,0.07058469]
[1759973013259,0.73328821,122740.0,122730.0,0.05428876]
[1759973013840,0.95424375,122740.0,122730.0,0.05428876]
[1759973014007,0.73328821,122740.0,122730.0,0.05428876]
[1759973014628,0.73328821,122740.0,122730.0,0.07058469]
[1759973015334,0.73328821,122740.0,122730.0,0.05428876]
[1759973015891,0.73328821,122740.0,122730.0,0.07058469]
[1759973019911,0.73328821,122740.0,122730.0,0.05428876]
[1759973019912,1.03736581,122740.0,122730.0,0.05428876]
[1759973020133,1.48944135,122740.0,122730.0,0.01478876]
[1759973020352,1.48944135,122740.0,122730.0,0.00304876]
[1759973020782,1.29031835,122740.0,122730.0,0.00304876]
[1759973023725,1.32047025,122740.0,122730.0,0.00304876]
[1759973027111,1.34321655,122740.0,122730.0,0.00304876]
[1759973027930,1.11209655,122740.0,122730.0,0.00304876]
[1759973028131,1.34321655,122740.0,122730.0,0.00304876]
[1759973028964,1.13657364,122740.0,122730.0,0.00304876]
[1759973029176,1.36769364,122740.0,122730.0,0.00304876]
[1759973029850,0.69466256,122740.0,122730.0,0.00304876]
[1759973030022,0.96750446,122740.0,122730.0,0.05508876]
[1759973030157,0.95992235,122740.0,122730.0,0.05508876]
[1759973030354,1.19104235,122740.0,122730.0,0.03012876]
[1759973030908,0.95992235,122740.0,122730.0,0.03012876]
[1759973031124,1.19104235,122740.0,122730.0,0.03012876]
[1759973034251,0.95992235,122740.0,122730.0,0.03012876]
[1759973034456,0.95992235,122740.0,122730.0,0.00304876]
[1759973034639,1.19104235,122740.0,122730.0,0.00304876]
[1759973036102,0.95992235,122740.0,122730.0,0.00304876]
[1759973036322,1.19104235,122740.0,122730.0,0.00304876]
[1759973037613,0.95992235,122740.0,122730.0,0.00304876]
[1759973037814,1.19108235,122740.0,122730.0,0.00304876]
[1759973040152,0.89640791,122740.0,122730.0,0.00304876]
[1759973040353,1.19108235,122740.0,122730.0,0.00304876]
[1759973043019,0.95992235,122740.0,122730.0,0.00304876]
[1759973043222,1.21291489,122740.0,122730.0,0.00304876]
[1759973043428,0.98175489,122740.0,122730.0,0.00304876]
[1759973043639,1.21291489,122740.0,122730.0,0.00304876]
[1759973044270,1.21291489,122740.0,122730.0,0.00204876]
[1759973044491,0.16295934,122730.0,122720.0,0.00096894]
[1759973044682,1.10358701,122730.0,122720.0,0.0011135]
[1759973044880,0.87242701,122730.0,122720.0,0.0011135]
[1759973045058,1.10358701,122730.0,122720.0,0.0011135]
[1759973045260,1.46806658,122730.0,122720.0,0.0011135]
[1759973045638,1.48406658,122730.0,122720.0,0.0011135]
[1759973046096,1.51206658,122730.0,122720.0,0.0051135]
[1759973046560,1.21739214,122730.0,122720.0,0.0051135]
[1759973047921,0.34,122690.0,122680.0,0.01189]
[1759973048137,0.88080897,122690.0,122680.0,0.02863607]
[1759973048373,1.11196897,122690.0,122680.0,0.03066187]
[1759973048590,1.11196897,122690.0,122680.0,0.00215187]
[1759973048807,1.13645254,122690.0,122680.0,0.01877187]
[1759973049245,1.1477896,122690.0,122680.0,0.03745187]
[1759973051164,0.9166296,122690.0,122680.0,0.03745187]
[1759973051367,1.1477896,122690.0,122680.0,0.03745187]
[1759973051574,1.1477896,122690.0,122680.0,0.06013187]
[1759973053001,0.9166296,122690.0,122680.0,0.06013187]
[1759973053156,0.90829254,122690.0,122680.0,0.06013187]
[1759973053369,0.6136181,122690.0,122680.0,0.06013187]
[1759973054510,0.90829254,122690.0,122680.0,0.06013187]
[1759973055621,0.6136181,122690.0,122680.0,0.06013187]
[1759973055826,0.90829254,122690.0,122680.0,0.06013187]
[1759973056722,1.13945254,122690.0,122680.0,0.06013187]
[1759973056932,0.90829254,122690.0,122680.0,0.06013187]
[1759973057292,1.13945254,122690.0,122680.0,0.06013187]
[1759973060045,0.90829254,122690.0,122680.0,0.06013187]
[1759973064206,1.13945254,122690.0,122680.0,0.06013187]
[1759973064413,0.90829254,122690.0,122680.0,0.06013187]
[1759973066569,0.90829254,122690.0,122680.0,0.03745187]
[1759973066755,1.15462075,122690.0,122680.0,0.03745187]
[1759973068186,0.92342075,122690.0,122680.0,0.03745187]
[1759973068327,1.15458075,122690.0,122680.0,0.03745187]
[1759973068526,0.94525329,122690.0,122680.0,0.03745187]
[1759973069184,1.17641329,122690.0,122680.0,0.03745187]
[1759973069727,0.94525329,122690.0,122680.0,0.00915187]
[1759973069935,1.17641329,122690.0,122680.0,0.02577187]
[1759973070530,1.17641329,122690.0,122680.0,0.03745187]
[1759973070737,0.94525329,122690.0,122680.0,0.03745187]
[1759973070897,0.88173885,122690.0,122680.0,0.03745187]
[1759973071092,1.17641329,122690.0,122680.0,0.03745187]
[1759973071528,1.15458075,122690.0,122680.0,0.03745187]
[1759973073625,0.92342075,122690.0,122680.0,0.00915187]
[1759973073867,1.15458075,122690.0,122680.0,0.00915187]
[1759973074071,1.15458075,122690.0,122680.0,0.02577187]
[1759973074287,1.15458075,122690.0,122680.0,0.03745187]
[1759973074429,1.16216466,122690.0,122680.0,0.03745187]
[1759973076227,1.16221325,122690.0,122680.0,0.03745187]
[1759973076423,0.62879191,122690.0,122680.0,0.06176187]
[1759973076650,1.15462635,122690.0,122680.0,0.06176187]
[1759973076860,1.13945254,122690.0,122680.0,0.06176187]
[1759973077075,0.62879723,122690.0,122680.0,0.06176187]
[1759973077306,1.13945254,122690.0,122680.0,0.06176187]
[1759973077551,0.86755896,122690.0,122680.0,0.06176187]
[1759973077756,1.1622334,122690.0,122680.0,0.06176187]
[1759973077969,0.90829254,122690.0,122680.0,0.06176187]
[1759973078180,1.16223346,122690.0,122680.0,0.06176187]
[1759973079675,1.14704618,122690.0,122680.0,0.06176187]
[1759973079814,1.16223394,122690.0,122680.0,0.06176187]
[1759973080401,1.16223462,122690.0,122680.0,0.06176187]
[1759973081288,1.1546403,122690.0,122680.0,0.06176187]
[1759973082476,0.5456838,122690.0,122680.0,0.06176187]
[1759973082720,0.52120023,122690.0,122680.0,0.06176187]
[1759973082941,0.81587467,122690.0,122680.0,0.06176187]
[1759973083480,0.80068691,122690.0,122680.0,0.06176187]
[1759973085004,0.50601247,122690.0,122680.0,0.06176187]
[1759973091046,0.003,122690.0,122680.0,0.51903518]
[1759973091259,0.003,122690.0,122680.0,0.45594762]
[1759973091920,0.003,122690.0,122680.0,0.67702339]
[1759973092121,0.003,122690.0,122680.0,0.66693916]
[1759973092321,0.003,122690.0,122680.0,0.89809916]
[1759973092563,0.003,122690.0,122680.0,0.97809596]
[1759973092760,0.003,122690.0,122680.0,1.06121802]
[1759973095316,0.003,122690.0,122680.0,0.83005802]
[1759973095721,0.003,122690.0,122680.0,1.14597802]
[1759973096106,0.003,122690.0,122680.0,0.91485802]
[1759973096364,0.003,122690.0,122680.0,1.80705378]
[1759973096365,0.002,122690.0,122680.0,1.80705378]
[1759973096687,0.003,122690.0,122680.0,1.58597801]
[1759973096866,0.001,122690.0,122680.0,1.57897801]
[1759973097027,0.003,122690.0,122680.0,1.58497801]
[1759973097230,0.001,122690.0,122680.0,1.57897801]
[1759973097453,0.001,122690.0,122680.0,1.26305801]
[1759973097655,0.004,122690.0,122680.0,1.35585801]
[1759973097857,0.004,122690.0,122680.0,1.58697801]
[1759973098072,0.003,122690.0,122680.0,1.58697801]
[1759973098463,0.004,122690.0,122680.0,1.59097801]
[1759973100326,0.004,122690.0,122680.0,1.35985801]
[1759973100582,0.004,122690.0,122680.0,1.59097801]
[1759973101782,0.004,122690.0,122680.0,1.38433117]
[1759973102011,0.004,122690.0,122680.0,1.61541117]
[1759973102791,0.004,122690.0,122680.0,1.89163883]
[1759973103200,0.004,122690.0,122680.0,1.66055883]
[1759973103413,0.004,122690.0,122680.0,1.89163883]
[1759973104535,0.004,122690.0,122680.0,2.23083883]
[1759973110917,0.004,122690.0,122680.0,1.80679883]
[1759973111119,0.004,122690.0,122680.0,2.23071883]
[1759973111520,0.004,122690.0,122680.0,1.99967883]
[1759973111723,0.004,122690.0,122680.0,2.23071883]
[1759973113789,0.004,122690.0,122680.0,1.57575883]
[1759973113992,0.004,122690.0,122680.0,2.23067883]
[1759973120171,0.004,122690.0,122680.0,2.89386614]